Cogmind - Beta 15 @@@ ROGUE MODE // 2025.09.18 @ 01:10:04 Player: c4-BRK Result: Self-destructed Performance ------------- Evolutions (2) 1000 Regions Visited (5) 1000 Robots Destroyed (14) 70 Value Destroyed (385) 385 Prototype IDs (1) 20 Alien Tech Used (0) 0 Bonus (47) 47 TOTAL SCORE: 2522 Bonus ------- Follower Combat Kills 47 Cogmind --------- Core Integrity 292/550 Matter 197/300 Energy 100/100 System Corruption 1% Temperature Cool (0) Movement Core (50) Location -8/Materials Parts ------- > --- POWER (2) -------- (None) > --- PROPULSION (3) --- (None) > --- UTILITY (4) ------ Improved Signal Interpreter > --- WEAPON (2) ------- (None) > --- INVENTORY (5) ---- Scrap Suit Improved Heat Sink Peak State ------------ > --- POWER ------------ Light Nuclear Core > --- PROPULSION ------- Light Treads Light Treads Compact Wheel > --- UTILITY ---------- Improved Heat Sink Small Storage Unit Experimental Sensor Array Improved Signal Interpreter > --- WEAPON ----------- EM Pulse Cannon Assault Rifle > --- INVENTORY -------- Scrap Suit Grenade Launcher Rocket Launcher [Rating: 27] Favorites ----------- Power Ion Engine Engine Ion Engine Power Core Light Nuclear Core Propulsion Compact Wheel Treads Light Treads Wheel Compact Wheel Utility Small Storage Unit Device Improved Heat Sink Storage Small Storage Unit Processor Improved Signal Interpreter Weapon Assault Rifle Energy Cannon EM Pulse Cannon Ballistic Gun Assault Rifle Launcher Grenade Launcher Build | -11 -10 -10 -10 -9 -8 ------- Run | Yrd Mat Min Exi Min Mat Slots Evolved 4 | . . . . . 4 Power 1 | . . . . . 1 Propulsion 1 | . . . . . 1 Utility 2 | . . . . . 2 Weapon . | . . . . . . Parts Attached 17 | 6 1 . 1 1 8 Power 2 | 1 . . . . 1 Engine 1 | 1 . . . . . Core 1 | . . . . . 1 Reactor . | . . . . . . Propulsion 5 | 2 . . . 1 2 Treads 2 | . . . . . 2 Leg . | . . . . . . Wheel 3 | 2 . . . 1 . Hover . | . . . . . . Flight . | . . . . . . Utility 5 | 1 1 . . . 3 Device 3 | . 1 . . . 2 Storage 1 | 1 . . . . . Processor 1 | . . . . . 1 Hackware . | . . . . . . Protection . | . . . . . . Artifact . | . . . . . . Weapon 5 | 2 . . 1 . 2 Energy Gun . | . . . . . . Energy Cannon 1 | . . . . . 1 Ballistic Gun 2 | 2 . . . . . Ballistic Cannon . | . . . . . . Launcher 2 | . . . 1 . 1 Special Weapon . | . . . . . . Impact Weapon . | . . . . . . Slashing Weapon . | . . . . . . Piercing Weapon . | . . . . . . Special Melee Weapon . | . . . . . . Unidentified Prototypes 1 | . . . . . 1 Corrupted Parts 1 | . . . . . 1 System Corruption 1 | . . . . . 1 Parts Lost 14 | . . . . . 14 Power 2 | . . . . . 2 Propulsion 4 | . . . . . 4 Utility 4 | . . . . . 4 Weapon 4 | . . . . . 4 Highest Loss Streak 9 | . . . . . 9 To Critical Strikes . | . . . . . . Average Backups 4 | . 1 2 6 7 4 Power 1 | . . . 2 3 1 Propulsion . | . . 1 1 . . Utility . | . . . 1 1 1 Weapon 1 | . . 1 2 2 1 Tool/Special . | . . . . . . Unused Backups 6 | . . . . 1 5 Power 3 | . . . . . 3 Propulsion . | . . . . . . Utility 3 | . . . . 1 2 Weapon . | . . . . . . Tool/Special . | . . . . . . Average Slot Usage (%) 91 | . 88 100 100 100 72 Engine 10 | . 14 14 14 14 1 Treads 2 | . . . . . 10 Wheel 24 | . 28 28 28 28 12 Device 12 | . 3 14 14 14 15 Storage 12 | . 14 14 14 14 8 Processor 1 | . . . . . 6 Energy Cannon 1 | . . . . . 5 Ballistic Gun 22 | . 28 28 26 28 6 Peak Build Rating 27 | 6 9 9 10 12 27 Average Rating 11 | 4 6 9 9 11 19 On Entrance 7 | . 6 9 9 10 12 Naked Turns . | . . . . . . Heaviest Build 20 | 14 15 15 16 15 20 Greatest Support 32 | 26 26 26 26 32 32 Greatest Overweight (x) 4 | . . . . . 4 Average Overweight (x) . | . . . . . . Largest Inventory Capacity 8 | 8 8 8 8 8 8 Average Capacity 7 | 7 8 8 8 8 7 Most Carried 8 | 4 3 4 7 8 8 Average Carried 4 | . 1 2 6 7 5 Final Capacity 8 | 8 8 8 8 8 5 Final Carried 8 | . 2 4 7 8 3 Class Distribution -------------------- 90% | Mutant 9% | Scavenger-Mutant Dominant Class ---------------- Mutant | -10/Materials Mutant | -10/Mines Mutant | -10/Exiles Mutant | -9/Mines Mutant | -8/Materials Resources | -11 -10 -10 -10 -9 -8 ----------- Run | Yrd Mat Min Exi Min Mat Matter Collected 613 | 253 115 22 . 10 213 Remotely . | . . . . . . Salvage Created 544 | . 151 50 . 14 329 Parts 34 | . 8 5 . 2 19 Haulers Intercepted . | . . . . . . Recyclers Shooed 2 | . 1 . . . 1 Parts Field Recycled . | . . . . . . Retrieved Matter . | . . . . . . Parts Self-Destructed . | . . . . . . Prevented . | . . . . . . Kills | -11 -10 -10 -10 -9 -8 ------- Run | Yrd Mat Min Exi Min Mat Combat Hostiles Destroyed 11 | . 2 1 . 1 7 Guns 8 | . 2 1 . 1 4 Cannons 2 | . . . . . 2 AOE 1 | . . . . . 1 Classes Destroyed 5 | . 2 1 . 1 1 Worker 1 | . . . . . 1 Recycler 2 | . 1 . . . 1 Swarmer 4 | . . . . 1 3 Grunt 5 | . 2 . . . 3 Sentry 2 | . . 1 . . 1 Best Kill Streak 2 | . 1 1 . 1 2 Combat Bots Only 1 | . 1 1 . 1 1 Max Kills in Single Turn 1 | . 1 1 . 1 1 Gunslinging . | . . . . . . Exploded 1 | . . . . . 1 Melee . | . . . . . . Uniques/NPCs Destroyed . | . . . . . . Combat | -11 -10 -10 -10 -9 -8 -------- Run | Yrd Mat Min Exi Min Mat Hostile Shots Fired 91 | . 13 8 . 6 64 Missed 28 | . 6 2 . 2 18 Hits 63 | . 7 6 . 4 46 Projectile 63 | . 7 6 . 4 46 AOE 1 | . . . . . 1 Critical Strikes 2 | . . . . . 2 Part Disruptions 1 | . . . . 1 . Damage Taken 1329 | . 91 92 . 70 1076 Core 336 | . 45 33 . . 258 Absorbed by Shields . | . . . . . . Core Remaining (%) 84 | 100 . . . 68 . Volleys Fired 74 | 1 17 2 3 3 48 Largest 2 | 2 2 2 1 2 2 Hottest 83 | 40 40 40 30 40 83 Shots Fired 110 | 2 34 4 3 6 61 Gun 86 | 2 34 4 1 6 39 Cannon 11 | . . . . . 11 Launcher 13 | . . . 2 . 11 Special . | . . . . . . Kinetic 86 | 2 34 4 1 6 39 Thermal . | . . . . . . Explosive 13 | . . . 2 . 11 Electromagnetic 11 | . . . . . 11 Robot Hit Streak 5 | . 4 1 . 4 5 Robot Miss Streak 4 | . 4 1 . 2 3 Penetration Max . | . . . . . . Secondary Targets . | . . . . . . Shots Hit Robots 61 | . 15 2 . 4 40 Core Hits 33 | . 8 1 . 1 23 Critical Kills . | . . . . . . Critical Parts Destroyed . | . . . . . . Critical Strikes . | . . . . . . Melee Attacks . | . . . . . . Impact . | . . . . . . Slashing . | . . . . . . Piercing . | . . . . . . Sneak Attacks . | . . . . . . Combat Hostiles . | . . . . . . Follow-up Attacks . | . . . . . . Damage Inflicted 1235 | . 218 27 . 49 941 Guns 612 | . 218 27 . 49 318 Cannons 145 | . . . . . 145 Explosions 478 | . . . . . 478 Melee . | . . . . . . Ramming . | . . . . . . Kinetic 612 | . 218 27 . 49 318 Thermal . | . . . . . . Explosive 478 | . . . . . 478 Electromagnetic 145 | . . . . . 145 Impact . | . . . . . . Slashing . | . . . . . . Piercing . | . . . . . . Highest Corruption 1 | . . . . . 1 Average Corruption 1 | . . . . . 1 Corruption Purged . | . . . . . . Corruption Blocked . | . . . . . . Effects 1 | . . . . . 1 Parts Rejected 1 | . . . . . 1 Overload Shots . | . . . . . . Overflow Damage 4 | . . . . . 4 Projectiles . | . . . . . . Explosions 4 | . . . . . 4 Melee . | . . . . . . Knockbacks . | . . . . . . Impact . | . . . . . . Kinetic . | . . . . . . Secondary . | . . . . . . Self-Inflicted Damage 105 | . . . . . 105 Shots 7 | . . . . . 7 Rammed . | . . . . . . Targets Rammed . | . . . . . . Kicked . | . . . . . . Crushed . | . . . . . . Highest Temperature 9 | . 6 . . . 9 Average Temperature 5 | . 4 . . . 9 Received Heat Transfer 323 | . 48 27 . 29 219 Siege Activations . | . . . . . . Martial Activations . | . . . . . . Shielding Activations . | . . . . . . Robots Disrupted . | . . . . . . Combat Hostiles . | . . . . . . Robots Corrupted . | . . . . . . Combat Hostiles . | . . . . . . Parts Fried . | . . . . . . Impact Corruptions . | . . . . . . Robots Melted . | . . . . . . Combat Hostiles . | . . . . . . Parts Melted . | . . . . . . Heat Transferred . | . . . . . . Parts Sabotaged . | . . . . . . Parts Stolen . | . . . . . . Parts Stripped . | . . . . . . Power Chain Reactions . | . . . . . . Alert | -11 -10 -10 -10 -9 -8 ------- Run | Yrd Mat Min Exi Min Mat Maximum Alert Level . | . . . . . . Low Security (%) 100 | 100 100 100 . 100 100 Level 1 . | . . . . . . Level 2 . | . . . . . . Level 3 . | . . . . . . Level 4 . | . . . . . . Level 5 . | . . . . . . High Security . | . . . . . . Max Security . | . . . . . . Peak Influence 81 | . 55 47 . 81 63 Initial . | . . . . . . Average 13 | . 14 5 . 31 14 Influence Increases 496 | . 70 47 . 81 298 Destroy 0b10 Robot/C 280 | . 40 40 . 60 140 Destroy 0b10 Robot/NC 15 | . 5 . . . 10 Destroy Leader 50 | . 10 . . 10 30 Allied During Kill 17 | . . 6 . 11 . Disable Machine 30 | . . . . . 30 Destroy Structure 59 | . . 1 . . 58 Lose Combat Pursuer 45 | . 15 . . . 30 Influence Decreases 465 | . 70 40 7 81 267 Entered New Map 7 | . . . 7 . . Time Decay 340 | . 70 40 . 80 150 Lost Part 117 | . . . . . 117 Lost Ally 1 | . . . . 1 . Squads Dispatched 3 | . 1 . . . 2 Investigation . | . . . . . . Extermination . | . . . . . . Reinforcement 3 | . 1 . . . 2 Assault . | . . . . . . Garrison . | . . . . . . Intercept . | . . . . . . Searches Triggered . | . . . . . . Construction Impeded . | . . . . . . Haulers Reinforced . | . . . . . . Active Scanning Responses . | . . . . . . Cargo Convoy Interrupts . | . . . . . . Stealth | -11 -10 -10 -10 -9 -8 --------- Run | Yrd Mat Min Exi Min Mat Distress Signals 3 | . . . . . 3 Communications Jammed . | . . . . . . Distress Signals . | . . . . . . Times Spotted 51 | . 7 2 . 21 21 Peak Tracking Total 20 | . 2 2 . 20 6 Tactical Retreats 4 | . 1 . . 1 2 Traps | -11 -10 -10 -10 -9 -8 ------- Run | Yrd Mat Min Exi Min Mat Traps Triggered . | . . . . . . Indirectly . | . . . . . . Trap Hack Attempts . | . . . . . . Triggered . | . . . . . . Disarmed . | . . . . . . Reprogrammed . | . . . . . . Reused . | . . . . . . Traps Extracted . | . . . . . . Installed . | . . . . . . Triggered . | . . . . . . Machines | -11 -10 -10 -10 -9 -8 ---------- Run | Yrd Mat Min Exi Min Mat Machines Disabled 2 | . . . . . 2 Max in Single Turn 1 | . . . . . 1 Machines Repaired . | . . . . . . Machines Dismantled . | . . . . . . Machines Sabotaged . | . . . . . . Overloaded Fab Kills . | . . . . . . Hacking | -11 -10 -10 -10 -9 -8 --------- Run | Yrd Mat Min Exi Min Mat Machines Accessed 4 | . . . 4 . . Terminals . | . . . . . . Fabricators . | . . . . . . Repair Stations . | . . . . . . Recycling Units . | . . . . . . Scanalyzers . | . . . . . . Garrison Access . | . . . . . . Total Hacks 4 | . . . 4 . . Successful 4 | . . . 4 . . Failed . | . . . . . . Catastrophic . | . . . . . . Database Lockouts . | . . . . . . Manual . | . . . . . . Terminals . | . . . . . . Fabricators . | . . . . . . Repair Stations . | . . . . . . Recycling Units . | . . . . . . Scanalyzers . | . . . . . . Garrison Access . | . . . . . . Terminal Hacks 4 | . . . 4 . . Record 4 | . . . 4 . . Fabricator Hacks . | . . . . . . Repair Station Hacks . | . . . . . . Recycling Unit Hacks . | . . . . . . Scanalyzer . | . . . . . . Garrison Access Hacks . | . . . . . . Unauthorized Hacks . | . . . . . . Terminals . | . . . . . . Fabricators . | . . . . . . Repair Stations . | . . . . . . Recycling Units . | . . . . . . Scanalyzers . | . . . . . . Garrison Access . | . . . . . . Data Cores Recovered . | . . . . . . Used . | . . . . . . Hacking Detections . | . . . . . . Full Trace Events . | . . . . . . Feedback Events . | . . . . . . Feedback Blocked . | . . . . . . Robot Schematics Acquired . | . . . . . . Robots Built . | . . . . . . Authchips . | . . . . . . Time . | . . . . . . Total Robot Build Rating . | . . . . . . Part Schematics Acquired . | . . . . . . Parts Built . | . . . . . . Authchips . | . . . . . . Time . | . . . . . . Total Part Build Rating . | . . . . . . Parts Repaired . | . . . . . . Time . | . . . . . . Parts Recycled . | . . . . . . Recycled Matter . | . . . . . . Retrieved Matter . | . . . . . . Retrieved Components . | . . . . . . Parts Scanalyzed . | . . . . . . Part Schematics Acquired . | . . . . . . Parts Damaged . | . . . . . . Bothacking | -11 -10 -10 -10 -9 -8 ------------ Run | Yrd Mat Min Exi Min Mat Used RIF Installer . | . . . . . . Robots Hacked . | . . . . . . Non-combat . | . . . . . . Combat . | . . . . . . Robot Hacks Applied . | . . . . . . Relay Couplers Released . | . . . . . . Fabnet Peak Effective % . | . . . . . . Robots Rewired . | . . . . . . Allies Hacked . | . . . . . . Hacks Repelled . | . . . . . . Allies | -11 -10 -10 -10 -9 -8 -------- Run | Yrd Mat Min Exi Min Mat Total Allies 3 | . . 3 . . . Largest Group 3 | . . 3 3 3 . Highest-Rated Group 40 | . . 40 40 40 . Highest-Rated Ally 16 | . . 16 16 16 . Total Orders . | . . . . . . Ally Attacks 52 | . . 5 . 47 . Total Damage 396 | . . 57 . 339 . Kills 7 | . . 1 . 6 . Allies Corrupted . | . . . . . . Allies Melted . | . . . . . . Intel | -11 -10 -10 -10 -9 -8 ------- Run | Yrd Mat Min Exi Min Mat Active Infowar (turns) 279 | . . . . . 279 Sensors 279 | . . . . . 279 Robot Analysis Total . | . . . . . . Derelict Logs Recovered 2 | . . 2 . . . Drone Launches . | . . . . . . Drone Recoveries . | . . . . . . Exploration | -11 -10 -10 -10 -9 -8 ------------- Run | Yrd Mat Min Exi Min Mat Turns Passed 2021 | 53 264 488 517 219 480 Spaces Moved 1731 | 47 228 464 545 213 234 Core 18 | 10 . . . . 8 Treads 104 | . . . . . 104 Legs . | . . . . . . Wheels 1609 | 37 228 464 545 213 122 Hover . | . . . . . . Flight . | . . . . . . Fastest Speed 50 | 50 90 90 90 90 100 Average Speed 95 | 81 90 90 90 96 129 Slowest Speed 250 | 90 90 90 90 100 250 Overloaded Moves . | . . . . . . Propulsion Burnouts . | . . . . . . Robots Hopped . | . . . . . . Potential Cave-ins . | . . . . . . Cave-ins Triggered . | . . . . . . Exploration Rate (%) 48 | 3 34 92 91 50 20 Regions Visited 5 Branch Regions 3 Pre-discovered Areas 2 | . . 2 . . . Known Exits Taken . | . . . . . . Unknown Exits Taken 5 | 1 1 1 1 1 . Scrap Searched 1 | . . 1 . . . Spaces Dug . | . . . . . . Terrain Destroyed 70 | . . . 3 . 67 Melee . | . . . . . . Projectile . | . . . . . . AOE 70 | . . . 3 . 67 Terrain Rammed . | . . . . . . Walls Destroyed . | . . . . . . Machines Disabled . | . . . . . . Actions | -11 -10 -10 -10 -9 -8 --------- Run | Yrd Mat Min Exi Min Mat Total 1980 | 59 252 530 567 222 350 Wait 133 | . 4 63 15 . 51 Move 1726 | 46 227 463 544 212 234 Hop . | . . . . . . Pick Up 22 | 6 3 2 3 3 5 Fast Attach 2 | . . . . . 2 Attach 14 | 6 1 . . . 7 Detach . | . . . . . . Swap 3 | . . . 2 1 . Drop 6 | . . . . 3 3 Fire 74 | 1 17 2 3 3 48 Melee . | . . . . . . Ram . | . . . . . . Kick . | . . . . . . Crush . | . . . . . . Escape Stasis . | . . . . . . Rewire . | . . . . . . Trap . | . . . . . . Miscellaneous . | . . . . . . Route ------- -11/Scrapyard -10/Materials -10/Mines (discovered 3 exits: [*Mat x2] / *Exi) -10/Exiles -9/Mines (discovered 2 exits: [*Mat x2]) -8/Materials History --------- Turn | Location | Event 31 | -11/Scrapyard | Discovered new exit (range 15) 54 | -11/Scrapyard | Entered Materials 139 | -10/Materials | Discovered new exit (range 9) 314 | -10/Materials | Build established: Mutant 318 | -10/Materials | Entered Mines 329 | -10/Mines | Learned Materials stockpile data 331 | -10/Mines | Met a Derelict bent on vengeance 467 | -10/Mines | Discovered new exit (range 8) 487 | -10/Mines | Received a Rocket Launcher from a helpful Derelict 511 | -10/Mines | Discovered new exit (range 11) 513 | -10/Mines | Learned location of Storage (-8) 571 | -10/Mines | Assisted by bots powering up and referring to "LRC-V3" 790 | -10/Mines | Deemed a non-threat by the Exiles lab entrance 790 | -10/Mines | Discovered new exit (range 5) 806 | -10/Mines | Entered Exiles 806 | -10/Exiles | Found Exiles lab abandoned 806 | -10/Exiles | Accompanied by 3 allies 1020 | -10/Exiles | Discovered new exit (range 14) 1323 | -10/Exiles | Entered Mines 1323 | -9/Mines | Accompanied by 3 allies 1359 | -9/Mines | Discovered new exit (range 16) 1360 | -9/Mines | Found a hidden stash of uninstalled traps 1378 | -9/Mines | Found a damaged Exp. Sensor Array with a note attached 1380 | -9/Mines | Found Prototype Device 1406 | -9/Mines | Found a Scrap Suit stashed away for nefarious purposes 1414 | -9/Mines | Found Scrap Suit 1447 | -9/Mines | Assembled infested the area 1533 | -9/Mines | Discovered new exit (range 9) 1542 | -9/Mines | Entered Materials 1542 | -8/Materials | Evolved 4 slots: Power x1, Propulsion x1, Utility x2 1636 | -8/Materials | Identified Exp. Sensor Array 2022 | -8/Materials | Self-destructed Last Messages --------------- Rocket Launcher destroyed. Knocked back. Imp. Heat Sink destroyed. Sml. Storage Unit destroyed. Knocked back. The unstable cave ceiling collapses. Com. Wheel destroyed. Knocked back. U-05 Engineer builds a Wall. U-05 Engineer lays Concrete. U-05 Engineer builds a Wall. U-05 Engineer lays Concrete. U-05 Engineer builds a Wall. Penetrated by Slug. Knocked back. W-25 Informer sends out distress signal. U-05 Engineer builds a Wall. The unstable cave ceiling collapses. Grenade Launcher destroyed. Imp. Sensor Array destroyed. Map ----- +----------------------------------------------------+ | ?????????????????????????????# " =+% # # | | ?????????????????????????????# # # """ # | | ?????????????????????????????# + + """ # | | ?????????????????????????????# # # """ # | | ?????????????????????????????######### ## # | | ????????????????????????????????# # # ########### | | ????????????????????????????????# # ? | | ??????????? ###+################ % ]# """ # | | ??????????? # ! """"" # | | ??????????? % """"" # | | ??????????? * # """"" # | | ?????????????# #### h####### # """ # | | ?????????????# ????????# #?????### ### # | | ???????????????????????# #???????# #?# % # | | ???????????????????????# +???????# #?########### | | ???????????????????????# g#???????# #???????????? | | ???????????????????????# #???????# #???????????? | | ???????????????????????# #???????# #???????????? | | ???????????????# ??????## ##???????#+#???????????? | | ????????????????# #?????# #????????# ???????????? | | ?????????????### # #####k#????????? ???????????? | | ?????????????#;;;;"" "#u##???????? ???????????? | | ????????????##; #u##???????? !???????????? | | ????????????# ; #u##???????? ???????????? | | ????????????# ; % # %####??????????????????? | | ????????????##; @ #??????????????????? | | ????????????# ; #?????????????????? | | ????????????# ; #?????????????????? | | ????????????##; H ???????????????? | | ?????????????#; # w ?????????????? | | ?????????????###;; ; ???????????? | | ?????????????? # w % ####### ??????????? | | ????????????? ! + ## ! ?????????????????? | | ???????????? ?# ? ????????????????? | | ????????????" ??# ? ???????????????? | | ?????????????????# ? #??????????????? | | ?????????????????+ ? ??????????????? | | ?????????????????# ? #??????????????? | | ????????????????????? ????????????????? | | ????????????????????? ???????????????????? | | ??????????????????????? ?????????????????????? | | ?????????????????????????????????????????????????? | | ?????????????????????????????????????????????????? | | ?????????????????????????????????????????????????? | | ?????????????????????????????????????????????????? | | ?????????????????????????????????????????????????? | | ?????????????????????????????????????????????????? | | ?????????????????????????????????????????????????? | | ?????????????????????????????????????????????????? | | ?????????????????????????????????????????????????? | +----------------------------------------------------+ Best States ------------- Heat Dissipation 45 Energy Generation 14 Energy Capacity 250 Matter Stores 300 Matter Capacity 300 Sight Range 16 Robot Scan Range 20 Terrain Scan Density 10 Evasion (%) 50 Recoil Reduction 1 Item Schematics ----------------- None Robot Schematics ------------------ None Fabricated ------------ Nothing Repaired ---------- Nothing Alien Tech Used ----------------- None Achievements -------------- None Challenges ------------ None Game ------ Seed ArmoredLightExtractor Manual? 0 Play Time 00:19:05 Cumulative 24.9 hours Start 2025.09.18 @ 00:39:06 End 2025.09.18 @ 01:10:04 Sessions 1 Manual Loads 0 Difficulty Rogue Special Mode None Game No. 38 Rogue 17 Adventurer 21 Explorer 0 Win Type - Total 1 Types 0/0/0/0/0/0/0/1/0/0 Lore% 48 Gallery% 32 Achievement% 37 Wizard Run 0 Options --------- Layout 1 ASCII 0 Keyboard 0 Movement Mouse Keybinds 0 Fullscreen 2 Font 24/Smallcaps Map View 50x35 Zoom Use 0% Tactical HUD 0 Map Filters NONE Filters NONE Steam 1 RUN: e191e9f3-fc70-466e-912d-7199ba5aaac2